{"text_format":"3","workbook":"xlsx","n_sheets":1,"sheets":["Orçamento de casamento"],"not_rendered":{"images":1},"read":"whole","date_system":"1900"}

{"sheet":"Orçamento de casamento","index":0,"n_rows":109,"n_cols":5,"rows_kept":109,"merged":[[2,1,3,1],[5,1,6,1],[14,1,15,1],[24,1,25,1],[33,1,34,1],[43,1,44,1],[50,1,51,1],[60,1,61,1],[73,1,74,1],[87,1,88,1],[95,1,96,1]]}
[{"$nulls":4}," "]
[]
[null,"Despesas Totais ","Valor estimado","Real"]
[null,null,{"$f":"C7+C16+C26+C35+C45+C52+C62+C75+C89+C97","v":{"v":350,"d":"R$ 350"}},{"$f":"D7+D16+D26+D35+D45+D52+D62+D75+D89+D97","v":{"v":320,"d":"R$ 320"}}]
[]
[null,"Vestuário","Valor estimado","Real"]
[null,null,{"$f":"SUM(Tabela_Vestuário[[#All],[Valor estimado]])","v":{"v":350,"d":"R$ 350"}},{"$f":"SUM(Tabela_Vestuário[[#All],[Real]])","v":{"v":320,"d":"R$ 320"}}]
[null,"Coluna1","Valor estimado","Real"]
[null,"Alianças de casamento",{"v":350,"d":"R$ 350.00"},{"v":320,"d":"R$ 320.00"}]
[null,"Traje de casamento"]
[null,"Acessórios"]
[null,"Sapatos"]
[null,"Outro – Insira os detalhes"]
[]
[null,"Decorações","Valor estimado","Real"]
[null,null,{"$f":"SUM(Tabela_Decorações[[#All],[Valor estimado]])","v":{"v":0,"d":"R$ 0"}},{"$f":"SUM(Tabela_Decorações[[#All],[Real]])","v":{"v":0,"d":"R$ 0"}}]
[null,"Coluna1","Valor estimado","Real"]
[null,"Arranjos para os bancos da igreja / outros assentos"]
[null,"Centros de mesa (exceto flores)"]
[null,"Velas"]
[null,"Iluminação"]
[null,"Balões"]
[null,"Outro – Insira os detalhes"]
[]
[null,"Presentes","Valor estimado","Real"]
[null,null,{"$f":"SUM(Tabela_Presentes[[#All],[Valor estimado]])","v":{"v":0,"d":"R$ 0"}},{"$f":"SUM(Tabela_Presentes[[#All],[Real]])","v":{"v":0,"d":"R$ 0"}}]
[null,"Coluna1","Valor estimado","Real"]
[null,"Participantes"]
[null,"Marriers"]
[null,"Pais"]
[null,"Leitores / outros participantes"]
[null,"Outro – Insira os detalhes"]
[]
[null,"Flores","Valor estimado","Real"]
[null,null,{"$f":"SUM(Tabela_Flores[[#All],[Valor estimado]])","v":{"v":0,"d":"R$ 0"}},{"$f":"SUM(Tabela_Flores[[#All],[Real]])","v":{"v":0,"d":"R$ 0"}}]
[null,"Coluna1","Valor estimado","Real"]
[null,"Buquês"]
[null,"Flores de lapela"]
[null,"Corsages"]
[null,"Cerimônia"]
[null,"Recepção"]
[null,"Outro – Insira os detalhes"]
[]
[null,"Música","Valor estimado","Real"]
[null,null,{"$f":"SUM(Tabela_Música[[#All],[Valor estimado]])","v":{"v":0,"d":"R$ 0"}},{"$f":"SUM(Tabela_Música[[#All],[Real]])","v":{"v":0,"d":"R$ 0"}}]
[null,"Coluna1","Valor estimado","Real"]
[null,"Músicos para a cerimônia"]
[null,"Banda / DJ para a recepção"]
[null,"Outro – Insira os detalhes"]
[]
[null,"Fotografia","Valor estimado","Real"]
[null,null,{"$f":"SUM(Tabela_Fotografia[[#All],[Valor estimado]])","v":{"v":0,"d":"R$ 0"}},{"$f":"SUM(Tabela_Fotografia[[#All],[Real]])","v":{"v":0,"d":"R$ 0"}}]
[null,"Coluna1","Valor estimado","Real"]
[null,"Formais"]
[null,"Instantâneas"]
[null,"Impressões adicionais"]
[null,"Álbuns de fotos"]
[null,"Videografia"]
[null,"Outro – Insira os detalhes"]
[]
[null,"Recepção  (exclui música e decoração)","Valor estimado","Real"]
[null,null,{"$f":"SUM(Tabela_Recepção[[#All],[Valor estimado]])","v":{"v":0,"d":"R$ 0"}},{"$f":"SUM(Tabela_Recepção[[#All],[Real]])","v":{"v":0,"d":"R$ 0"}}]
[null,"Coluna1","Valor estimado","Real"]
[null,"Taxas de salão / quarto"]
[null,"Mesas e cadeiras"]
[null,"Alimentação"]
[null,"Bebidas"]
[null,"Roupa de mesa"]
[null,"Bolo"]
[null,"Lembranças"]
[null,"Funcionários e gorjetas"]
[null,"Outro – Insira os detalhes"]
[]
[null,"Papelaria / Impressão","Valor estimado","Real"]
[null,null,{"$f":"SUM(Tabela_ImpressãoPapelaria[[#All],[Valor estimado]])","v":{"v":0,"d":"R$ 0"}},{"$f":"SUM(Tabela_ImpressãoPapelaria[[#All],[Real]])","v":{"v":0,"d":"R$ 0"}}]
[null,"Coluna1","Valor estimado","Real"]
[null,"Convites"]
[null,"Comunicados"]
[null,"Cartões de agradecimento"]
[null,"Papel de carta pessoal"]
[null,"Livro de convidados"]
[null,"Programas"]
[null,"Guardanapos da festa"]
[null,"Cartela de fósforos"]
[null,"Caligrafia"]
[null,"Outro – Insira os detalhes"]
[]
[null,"Transporte","Valor estimado","Real"]
[null,null,{"$f":"SUM(Tabela_Transporte[[#All],[Valor estimado]])","v":{"v":0,"d":"R$ 0"}},{"$f":"SUM(Tabela_Transporte[[#All],[Real]])","v":{"v":0,"d":"R$ 0"}}]
[null,"Coluna1","Valor estimado","Real"]
[null,"Limusines / carrinhos"]
[null,"Estacionamento"]
[null,"Táxis"]
[null,"Outro – Insira os detalhes"]
[]
[null,"Outras despesas","Valor estimado","Real"]
[null,null,{"$f":"SUM(Tabela_OutrosGastos[[#All],[Valor estimado]])","v":{"v":0,"d":"R$ 0"}},{"$f":"SUM(Tabela_OutrosGastos[[#All],[Real]])","v":{"v":0,"d":"R$ 0"}}]
[null,"Coluna1","Valor estimado","Real"]
[null,"Sacerdote"]
[null,"Taxa da igreja / local da cerimônia"]
[null,"Coordenador de casamento"]
[null,"Jantar de ensaio"]
[null,"Festa de noivado"]
[null,"Chás de cozinha"]
[null,"Salão de beleza"]
[null,"Despedidas de solteira/solteiro"]
[null,"Brunch"]
[null,"Quartos de hotel"]
[null,"Outro – Insira os detalhes"]